bitfinex-derivatives/quotes_SOLF0:USTF0_20260308
["timestamp","ask_amount","ask_price","bid_price","bid_amount"]
[1772980086870,10.968,82.056,82.021,11.57070151]
[1772980088468,10.969,82.048,82.01,11.49346962]
[1772980088672,11.58669102,82.049,82.01,11.49346962]
[1772980089471,10.971,82.033,82.001,11.49346962]
[1772980089667,11.58669102,82.029,81.98,3.95341911]
[1772980089873,3.95341911,82.02,81.976,11.49346962]
[1772980090068,11.58669102,82.019,81.964,11.49346962]
[1772980090374,11.58669102,82.049,82.001,11.49346962]
[1772980092574,11.58669102,82.064,82.011,11.49346962]
[1772980092872,11.58669102,82.064,82.02,3.95341911]
[1772980093074,10.967,82.062,82.02,3.95341911]
[1772980093474,11.55500137,82.079,82.021,11.49346962]
[1772980094979,11.55251832,82.072,82.021,11.49346962]
[1772980095278,21.922,82.113,82.021,11.49346962]
[1772980095279,11.58669102,82.069,82.021,11.49346962]
[1772980095874,22.55269102,82.069,82.021,11.49346962]
[1772980097682,10.967,82.065,82.021,11.49346962]
[1772980098470,22.55469102,82.059,82.021,11.49346962]
[1772980098676,11.58669102,82.058,82.011,11.49346962]
[1772980099580,10.968,82.057,82.011,11.49346962]
[1772980101880,10.97,82.045,82.011,11.49346962]
[1772980102080,11.58669102,82.069,82.011,11.49346962]
[1772980102283,11.58669102,82.069,82.02,3.95341911]
[1772980102782,11.58669102,82.047,82.0,15.44688873]
[1772980102976,11.58669102,82.047,82.001,11.49346962]
[1772980104077,11.58669102,82.047,81.987,11.49346962]
[1772980104271,11.58669102,82.03,81.987,11.49346962]
[1772980104981,11.58669102,82.018,81.973,11.49346962]
[1772980105781,10.975,82.005,81.973,11.49346962]
[1772980105979,3.95341911,82.03,81.973,11.49346962]
[1772980106178,3.95341911,82.03,81.97,3.95341911]
[1772980106179,11.58669102,82.032,81.991,11.49346962]
[1772980106381,10.972,82.03,81.991,11.49346962]
[1772980107783,10.97,82.04,82.0,3.95341911]
[1772980107983,10.97,82.04,82.001,11.49346962]
[1772980108579,11.53646166,82.035,81.988,11.49346962]
[1772980109785,10.972,82.027,81.991,11.49346962]
[1772980110580,11.53646166,82.035,81.991,11.49346962]
[1772980110581,22.50746166,82.035,81.991,11.49346962]
[1772980111380,10.972,82.028,81.991,11.49346962]
[1772980112285,10.973,82.02,81.991,11.49346962]
[1772980112686,10.973,82.02,81.98,15.40665823]
[1772980112886,10.974,82.012,81.981,11.44357776]
[1772980114487,11.55252745,82.021,81.972,476.31194481]
[1772980114786,11.55252745,82.021,81.973,11.44357776]
[1772980115688,11.55252745,82.021,81.98,3.96308047]
[1772980115889,10.973,82.02,81.981,11.44357776]
[1772980116487,11.12727521,82.044,82.001,11.44357776]
[1772980116687,11.12727521,82.044,81.972,476.31194481]
[1772980116688,11.12727521,82.044,81.99,15.40665823]
[1772980116889,11.1262725,82.039,81.99,15.40665823]
[1772980117087,3.96308047,82.03,81.98,3.96308047]
[1772980117391,11.09437956,82.029,81.98,3.96308047]
[1772980117591,10.974,82.014,81.977,11.44357776]
[1772980117981,11.09437956,82.029,81.977,11.44357776]
[1772980118387,10.973,82.022,81.977,11.44357776]
[1772980118788,22.06529682,82.022,81.977,11.44357776]
[1772980119992,10.973,82.02,81.98,3.96308047]
[1772980122397,22.07387855,82.02,81.98,3.96308047]
[1772980122696,10.974,82.016,81.98,3.96308047]
[1772980123592,10.972,82.025,81.99,3.96308047]
[1772980123898,10.972,82.025,81.991,11.44357776]
[1772980138911,10.973,82.021,81.991,11.44357776]
[1772980140615,10.972,82.028,81.991,11.44357776]
[1772980140908,11.23806405,82.046,82.001,11.44357776]
[1772980141109,11.20339336,82.044,82.001,11.44357776]
[1772980141311,10.972,82.028,82.001,11.44357776]
[1772980141907,10.971,82.036,82.001,11.44357776]
[1772980142614,10.972,82.03,82.001,11.44357776]
[1772980143708,10.971,82.038,82.001,11.44357776]
[1772980146517,11.17060908,82.055,82.001,11.44357776]
[1772980146518,10.969,82.048,82.001,11.44357776]
[1772980146818,9.94361449,82.047,82.001,11.44357776]
[1772980147113,9.94361449,82.046,82.001,11.44357776]
[1772980147313,9.94361449,82.045,82.001,11.44357776]
[1772980147512,9.94361449,82.044,82.001,11.44357776]
[1772980147711,11.36557491,82.041,82.001,11.44357776]
[1772980148613,10.971,82.033,82.001,11.44357776]
[1772980160322,10.97,82.04,82.001,11.44357776]
[1772980160523,9.87149109,82.039,82.001,11.44357776]
[1772980160725,9.87149109,82.038,82.001,11.44357776]
[1772980160922,9.87149109,82.037,82.001,11.44357776]
[1772980161122,9.87149109,82.036,82.001,11.44357776]
[1772980161425,9.87149109,82.035,82.001,11.44357776]
[1772980161627,9.87149109,82.034,82.001,11.44357776]
[1772980161823,10.971,82.037,82.001,11.44357776]
[1772980162024,9.87230102,82.036,82.001,11.44357776]
[1772980162224,11.31201848,82.057,82.011,11.33873707]
[1772980162527,22.4959135,82.055,82.011,11.33873707]
[1772980163520,10.968,82.055,82.021,11.33873707]
[1772980166225,11.5279135,82.062,82.021,11.33873707]
[1772980166828,10.968,82.061,82.021,11.33873707]
[1772980167124,11.5279135,82.06,82.021,11.33873707]
[1772980168929,22.4959135,82.056,82.021,11.33873707]
[1772980173632,3.95959785,82.07,82.021,11.33873707]
[1772980173633,10.967,82.065,82.021,11.33873707]
[1772980173834,3.95959785,82.06,82.011,10.85907405]
[1772980174035,11.1360392,82.059,82.011,10.85907405]
[1772980174234,9.80933545,82.058,82.011,10.85907405]
[1772980174434,11.1360392,82.056,82.011,10.85907405]
[1772980174824,22.1050392,82.051,82.011,10.85907405]
[1772980176526,11.1360392,82.05,82.011,10.85907405]
[1772980176930,10.97,82.044,82.011,10.85907405]
[1772980177936,11.1360392,82.05,82.011,10.85907405]
[1772980179733,11.1360392,82.05,82.008,10.975]
[1772980179933,10.969,82.052,82.008,10.975]
[1772980179934,11.1360392,82.047,82.01,3.95959785]
[1772980180236,11.1360392,82.047,82.001,10.85907405]
[1772980180433,11.1360392,82.047,82.01,3.95959785]
[1772980180737,11.1360392,82.047,82.01,14.8186719]
[1772980181436,10.971,82.038,82.01,10.85907405]
[1772980181638,11.1360392,82.047,82.01,10.85907405]
[1772980182734,10.97,82.046,82.01,10.85907405]
[1772980183236,22.1060392,82.046,82.01,10.85907405]
[1772980185139,11.1360392,82.046,82.01,10.85907405]
[1772980187541,11.1360392,82.046,82.011,10.85907405]
[1772980196038,10.968,82.057,82.011,10.85907405]
[1772980196242,22.1040392,82.057,82.011,10.85907405]
[1772980199845,3.95959785,82.07,82.011,10.85907405]
[1772980199846,10.969,82.054,82.011,10.85907405]
[1772980203247,10.969,82.052,82.011,10.85907405]
[1772980208151,10.58324403,82.063,82.021,10.62815216]
[1772980208451,76.53378156,82.161,81.98,21.957]
[1772980208452,10.58324403,82.075,82.04,14.58775001]
[1772980208646,10.58324403,82.075,82.041,10.62815216]
[1772980208846,10.58324403,82.073,82.041,10.62815216]
[1772980209954,10.58324403,82.072,82.041,10.62815216]
[1772980212853,10.58324403,82.083,82.05,3.95959785]
[1772980213056,10.58324403,82.093,82.051,10.62815216]
[1772980213851,10.964,82.089,82.051,10.62815216]
[1772980214549,10.965,82.081,82.051,10.62815216]
[1772980214756,10.58324403,82.08,82.041,10.62815216]
[1772980215356,10.58324403,82.08,82.03,14.58775001]
[1772980215553,10.58324403,82.08,82.04,3.95959785]
[1772980215753,10.965,82.079,82.041,10.62815216]
[1772980216149,21.54824403,82.079,82.041,10.62815216]
[1772980216357,21.54824403,82.079,82.05,3.95959785]
[1772980216555,22.66374437,82.14,81.999,487.47295209]
[1772980216556,10.58324403,82.096,82.06,3.95959785]
[1772980216855,10.58324403,82.096,82.051,10.62815216]
[1772980217257,10.58324403,82.083,82.037,10.62815216]
[1772980217454,10.58324403,82.079,82.03,3.95959785]
[1772980217856,10.58324403,82.079,82.025,10.62815216]
[1772980218855,10.58324403,82.072,82.025,10.62815216]
[1772980219355,10.58324403,82.072,82.031,10.62815216]
[1772980219651,21.54924403,82.072,82.031,10.62815216]
[1772980219846,10.58324403,82.071,82.031,10.62815216]
[1772980220049,10.58324403,82.092,82.05,14.58775001]
[1772980221058,10.58324403,82.083,82.04,3.95959785]
[1772980221357,10.58324403,82.083,82.036,10.62815216]
[1772980223560,10.58324403,82.083,82.041,10.62815216]
[1772980225356,10.965,82.082,82.041,10.62815216]
[1772980225556,21.54824403,82.082,82.041,10.62815216]
[1772980226853,10.58324403,82.081,82.041,10.62815216]
[1772980227757,10.965,82.08,82.041,10.62815216]
[1772980227959,10.58324403,82.079,82.041,10.62815216]
[1772980229263,10.58324403,82.099,82.051,10.62815216]
[1772980229462,10.58324403,82.099,82.05,3.95959785]
[1772980229463,10.58324403,82.099,82.06,14.58775001]
[1772980229663,10.58324403,82.099,82.06,14.58360672]
[1772980230165,10.58324403,82.099,82.06,10.62815216]
[1772980230765,10.963,82.097,82.06,10.62815216]
[1772980230958,10.58324403,82.096,82.06,10.62815216]
[1772980231165,10.58324403,82.106,82.061,10.62815216]
[1772980231463,10.58324403,82.106,82.071,10.62815216]
[1772980231860,10.58324403,82.127,82.08,3.95545456]
[1772980232066,10.58324403,82.127,82.081,10.62815216]
[1772980232867,10.72417763,82.123,82.081,10.62815216]
[1772980235769,10.72417763,82.123,82.09,3.95545456]
[1772980235963,10.72417763,82.123,82.081,10.62815216]
[1772980236765,10.72417763,82.122,82.071,11.40849981]
[1772980236961,3.95545456,82.11,82.06,3.95545456]
[1772980237162,10.72417763,82.109,82.059,11.40849981]
[1772980237767,10.962,82.099,82.059,11.40849981]
[1772980238468,10.962,82.099,82.06,3.95545456]
[1772980238970,10.72417763,82.095,82.06,3.95545456]
[1772980239171,10.72417763,82.095,82.059,11.40849981]
[1772980240067,10.72417763,82.112,82.07,3.95545456]
[1772980240264,10.72417763,82.112,82.071,11.40849981]
[1772980241271,10.72417763,82.108,82.06,3.95545456]
[1772980241571,10.72417763,82.108,82.06,15.36395437]
[1772980241770,10.72417763,82.108,82.061,11.40849981]
[1772980242773,10.72417763,82.104,82.061,11.40849981]
[1772980243372,10.962,82.103,82.061,11.40849981]
[1772980243572,10.72417763,82.102,82.061,11.40849981]
[1772980246172,10.72417763,82.102,82.062,10.967]
[1772980246576,10.72417763,82.102,82.07,3.95545456]
[1772980248476,10.72417763,82.102,82.063,11.40849981]
[1772980250171,10.72417763,82.096,82.05,3.95545456]
[1772980250371,10.72417763,82.096,82.051,11.40849981]
[1772980250872,10.963,82.095,82.051,11.40849981]
[1772980251075,10.72417763,82.094,82.051,11.40849981]
[1772980252780,10.72417763,82.09,82.051,11.40849981]
[1772980254480,10.72417763,82.086,82.051,11.40849981]
[1772980256383,10.72417763,82.125,82.08,3.95545456]
[1772980256577,10.72417763,82.125,82.074,11.40849981]
[1772980257885,10.72417763,82.115,82.074,11.40849981]
[1772980261588,10.72417763,82.115,82.065,10.967]
[1772980261783,10.72417763,82.115,82.07,3.95545456]
[1772980261990,10.72417763,82.113,82.07,3.95545456]
[1772980263087,10.959,82.123,82.073,11.3948698]
[1772980263291,10.64976424,82.122,82.073,11.3948698]
[1772980263788,10.64976424,82.122,82.08,3.95545456]
[1772980263984,10.64976424,82.122,82.09,3.95545456]
[1772980264190,10.64976424,82.133,82.091,11.3948698]
[1772980264389,10.64976424,82.133,82.1,3.95545456]
[1772980264580,10.80341789,82.159,82.101,10.72580644]
[1772980264781,10.80341789,82.157,82.11,3.95545456]
[1772980264982,10.80341789,82.157,82.11,14.681261]
[1772980265895,21.75941789,82.148,82.11,14.681261]
[1772980266289,10.80341789,82.147,82.11,14.681261]
[1772980266691,10.80341789,82.147,82.11,10.72580644]
[1772980268300,10.956,82.146,82.11,10.72580644]
[1772980268596,10.80341789,82.145,82.11,10.72580644]
[1772980268788,10.80341789,82.145,82.11,14.681261]
[1772980269291,10.80341789,82.145,82.111,10.72580644]
[1772980270798,10.956,82.144,82.111,10.72580644]
[1772980274000,21.75941789,82.144,82.111,10.72580644]
[1772980276499,10.957,82.14,82.111,10.72580644]
[1772980276898,10.80341789,82.139,82.101,10.72580644]
[1772980277800,10.958,82.135,82.101,10.72580644]
[1772980279003,10.80341789,82.139,82.101,10.72580644]
[1772980281296,10.80341789,82.137,82.101,10.72580644]
[1772980282798,10.80341789,82.131,82.084,10.72580644]
[1772980283298,10.80341789,82.125,82.084,10.72580644]
[1772980285796,10.959,82.123,82.084,10.72580644]
[1772980292410,10.80341789,82.125,82.091,10.72580644]
[1772980305114,10.80341789,82.125,82.083,10.965]
[1772980305321,10.91774208,82.12,82.077,11.11176883]
[1772980305516,10.91774208,82.119,82.067,11.11176883]
[1772980306819,10.91774208,82.109,82.068,10.967]
[1772980307014,10.91774208,82.109,82.069,11.11176883]
[1772980309223,10.91774208,82.106,82.069,11.11176883]
[1772980311328,10.91774208,82.106,82.071,11.11176883]
[1772980313925,10.91774208,82.119,82.075,11.11176883]
[1772980314128,10.91774208,82.119,82.035,12.2386786]
[1772980314129,10.91774208,82.119,82.08,15.06497662]
[1772980315329,3.95320779,82.13,82.08,11.11176883]
[1772980315330,10.91774208,82.116,82.08,11.11176883]
[1772980315631,10.91774208,82.116,82.07,15.06497662]
[1772980315829,10.91774208,82.116,82.071,11.11176883]
[1772980316836,10.91774208,82.111,82.071,11.11176883]
[1772980317533,10.91774208,82.111,82.074,11.11176883]
[1772980322443,10.91774208,82.149,82.091,11.11176883]
[1772980322641,10.91774208,82.149,82.1,14.93367988]
[1772980323340,11.46418618,82.147,82.1,14.93367988]
[1772980323841,11.46418618,82.136,82.09,3.95320779]
[1772980324638,11.46418618,82.136,82.081,10.98047209]
[1772980324838,11.18739164,82.126,82.081,21.94547209]
[1772980325141,11.18739164,82.126,82.082,10.88266106]
[1772980326732,10.959,82.124,82.082,10.88266106]
[1772980327031,11.18739164,82.123,82.082,10.88266106]
[1772980327338,11.18739164,82.107,82.072,10.88266106]
[1772980328142,11.18739164,82.118,82.081,10.88266106]
[1772980328943,11.18739164,82.118,82.09,3.95320779]
[1772980329136,21.908,82.164,82.091,10.88266106]
[1772980329137,11.18739164,82.139,82.091,10.88266106]
[1772980329543,10.958,82.131,82.1,14.83586885]
[1772980329940,10.958,82.131,82.1,10.88266106]
[1772980331641,22.14439164,82.139,82.1,10.88266106]
[1772980331838,11.18739164,82.138,82.1,10.88266106]
[1772980332744,10.957,82.137,82.1,10.88266106]
[1772980333044,22.14439164,82.137,82.1,10.88266106]
[1772980333840,11.18739164,82.136,82.1,10.88266106]
[1772980336447,11.18739164,82.133,82.1,10.88266106]
[1772980342455,37.00295086,82.186,82.111,10.88266106]
[1772980342456,11.18739164,82.159,82.111,10.88266106]
[1772980342666,11.18739164,82.157,82.111,10.88266106]
[1772980343863,22.14339164,82.151,82.111,10.88266106]
[1772980344560,11.18739164,82.151,82.114,10.88266106]
[1772980344765,11.18739164,82.178,82.121,10.88266106]
[1772980344958,9.78963373,82.177,82.121,10.88266106]
[1772980345158,3.95320779,82.18,82.121,10.88266106]
[1772980345159,11.18739164,82.175,82.121,10.88266106]
[1772980345359,11.18739164,82.173,82.121,10.88266106]
[1772980345658,2.11827653,82.199,82.073,489.57961725]
[1772980345659,11.18739164,82.205,82.14,3.95320779]
[1772980345862,20.97123631,82.204,82.161,10.88266106]
[1772980346064,11.18739164,82.204,82.171,10.88266106]
[1772980346260,11.18739164,82.204,82.161,10.88266106]
[1772980347267,11.18739164,82.204,82.171,10.88266106]
[1772980349962,11.18739164,82.204,82.16,10.88266106]
[1772980350165,11.18739164,82.204,82.17,3.95320779]
[1772980351767,11.18739164,82.216,82.171,10.88266106]
[1772980351968,10.947,82.215,82.171,10.88266106]
[1772980352268,11.18739164,82.214,82.171,10.88266106]
[1772980356065,10.74573151,82.21,82.171,10.88266106]
[1772980357869,10.74573151,82.205,82.151,10.64247914]
[1772980358068,10.74573151,82.205,82.161,10.64247914]
[1772980359873,10.949,82.203,82.161,10.64247914]
[1772980360175,10.74573151,82.203,82.161,10.64247914]
[1772980360469,10.74573151,82.216,82.171,10.64247914]
[1772980360776,10.74573151,82.211,82.171,10.64247914]
[1772980361373,10.74573151,82.209,82.171,10.64247914]
[1772980361569,10.74573151,82.229,82.18,3.94509872]
[1772980361876,10.74573151,82.239,82.191,10.64247914]
[1772980362074,10.74573151,82.239,82.2,3.94509872]
[1772980362377,10.74573151,82.239,82.201,10.64247914]
[1772980363276,10.74573151,82.239,82.19,14.58757786]
[1772980364776,10.74573151,82.231,82.19,14.58757786]
[1772980365167,10.74573151,82.231,82.191,10.64247914]
[1772980365574,10.74573151,82.245,82.191,10.64247914]
[1772980365769,10.74573151,82.249,82.211,10.64247914]
[1772980365972,10.74573151,82.269,82.22,3.94509872]
[1772980366173,10.74573151,82.269,82.22,14.58757786]
[1772980366872,10.941,82.258,82.22,14.58757786]
[1772980371381,10.74573151,82.252,82.211,10.64247914]
[1772980372976,10.74573151,82.252,82.212,10.64247914]
[1772980381186,10.74573151,82.265,82.22,3.94509872]
[1772980381388,3.94509872,82.28,82.23,3.94509872]
[1772980381389,10.74573151,82.277,82.23,3.94509872]
[1772980381585,10.74573151,82.296,82.242,10.64247914]
[1772980381784,10.74573151,82.296,82.251,10.64247914]
[1772980382792,10.74573151,82.296,82.255,10.56717259]
[1772980384587,10.74573151,82.296,82.26,3.94509872]
[1772980385785,10.88911248,82.307,82.261,10.39812835]
[1772980385985,10.88911248,82.339,82.281,10.39812835]
[1772980386287,10.88911248,82.339,82.3,3.94509872]
[1772980386889,10.88911248,82.339,82.192,177.0]
[1772980386890,10.88911248,82.339,82.29,3.94509872]
[1772980387089,10.88911248,82.339,82.281,10.39812835]
[1772980387692,10.88911248,82.339,82.283,10.39812835]
[1772980387992,10.88911248,82.339,82.29,3.94509872]
[1772980388193,10.88911248,82.339,82.291,10.39812835]
[1772980388394,10.88911248,82.339,82.243,21.887]
[1772980388395,10.88911248,82.339,82.301,10.39812835]
[1772980388600,10.88911248,82.356,82.301,10.39812835]
[1772980388785,10.88911248,82.349,82.292,10.937]
[1772980388992,10.88911248,82.349,82.293,10.39812835]
[1772980389292,3.94509872,82.32,82.27,3.94509872]
[1772980389485,10.88911248,82.319,82.27,3.94509872]
[1772980389689,10.88911248,82.319,82.268,10.39812835]
[1772980389894,10.88911248,82.317,82.26,3.94509872]
[1772980390396,10.88911248,82.309,82.256,10.39812835]
[1772980390585,10.88911248,82.309,82.26,3.94509872]
[1772980390790,10.88911248,82.329,82.28,3.94509872]
[1772980391595,10.88911248,82.329,82.271,10.39812835]
[1772980391796,10.88911248,82.329,82.272,10.39812835]
[1772980392993,10.88911248,82.327,82.272,10.39812835]
[1772980393297,10.88911248,82.319,82.272,10.39812835]
[1772980393890,10.88911248,82.316,82.272,10.39812835]
[1772980394097,10.88911248,82.316,82.261,10.941]
[1772980394296,10.88911248,82.316,82.262,10.39812835]
[1772980394496,10.88911248,82.316,82.26,3.94509872]
[1772980394497,10.88911248,82.296,82.251,10.39812835]
[1772980395294,10.88911248,82.296,82.251,21.34012835]
[1772980395495,10.88911248,82.321,82.271,10.39812835]
[1772980396796,10.88911248,82.321,82.272,10.939]
[1772980396992,10.88911248,82.321,82.273,10.39812835]
[1772980398892,10.88911248,82.318,82.26,3.94509872]
[1772980399091,10.88911248,82.309,82.26,3.94509872]
[1772980399502,3.94509872,82.3,82.25,3.94509872]
[1772980399703,10.88911248,82.299,82.241,10.39812835]
[1772980400614,3.94509872,82.28,82.226,10.39812835]
[1772980400794,9.62278554,82.344,82.241,10.39812835]
[1772980400795,10.88911248,82.322,82.241,10.39812835]
[1772980401104,10.88911248,82.298,82.251,10.39812835]
[1772980401604,10.88911248,82.296,82.241,10.943]
[1772980402005,10.88911248,82.296,82.241,21.34112835]
[1772980402205,10.88911248,82.296,82.26,3.94509872]
[1772980402398,10.88911248,82.296,82.251,10.39812835]
[1772980402598,10.88911248,82.296,82.24,3.94509872]
[1772980403003,10.88911248,82.288,82.241,10.943]
[1772980405608,10.938,82.284,82.24,3.94509872]
[1772980406405,21.82711248,82.284,82.24,3.94509872]
[1772980406599,10.938,82.282,82.23,3.94509872]
[1772980406800,10.88911248,82.279,82.223,10.39812835]
[1772980407102,10.88911248,82.279,82.23,14.34322707]
[1772980407401,10.88911248,82.279,82.231,10.39812835]
[1772980408007,3.94509872,82.29,82.231,10.39812835]
[1772980408196,10.88911248,82.292,82.241,10.39812835]
[1772980408507,10.88911248,82.289,82.241,10.39812835]
[1772980408706,10.88911248,82.279,82.23,3.94509872]
[1772980409907,10.88911248,82.275,82.23,3.94509872]
[1772980410706,10.88911248,82.269,82.22,3.94509872]
[1772980410912,10.88911248,82.269,82.216,10.947]
[1772980411299,10.88911248,82.269,82.217,10.39812835]
[1772980411503,10.88911248,82.269,82.22,3.94509872]
[1772980411704,10.88911248,82.279,82.231,10.39812835]
[1772980411906,10.88911248,82.279,82.23,3.94509872]
[1772980412108,10.88911248,82.269,82.22,3.94509872]
[1772980413709,10.88911248,82.269,82.22,3.94016247]
[1772980413905,11.03968206,82.268,82.22,3.94016247]
[1772980414811,10.94,82.264,82.22,3.94016247]
[1772980416411,10.94,82.264,82.23,3.94016247]
[1772980417910,21.97968206,82.264,82.23,3.94016247]
[1772980418107,11.03968206,82.263,82.23,3.94016247]
[1772980418307,11.03968206,82.263,82.22,10.28312764]
[1772980418308,11.03968206,82.263,82.22,14.22329011]
[1772980418508,11.03968206,82.263,82.23,3.94016247]
[1772980418509,10.941,82.262,82.23,3.94016247]
[1772980423519,11.03968206,82.261,82.22,14.22329011]
[1772980423714,22.44778199,82.326,82.182,472.27972781]
[1772980423715,11.03968206,82.257,82.2,3.94016247]
[1772980424219,11.03968206,82.257,82.2,14.22329011]
[1772980424920,11.03968206,82.24,82.2,14.22329011]
[1772980430215,11.03968206,82.263,82.23,3.94016247]
[1772980430623,11.03968206,82.279,82.23,14.22329011]
[1772980431815,10.94,82.267,82.23,14.22329011]
[1772980432414,21.97968206,82.267,82.23,14.22329011]
[1772980432910,10.941,82.263,82.23,14.22329011]
[1772980433218,10.941,82.263,82.212,10.947]
[1772980433219,11.03968206,82.262,82.22,3.94016247]
[1772980435324,11.03968206,82.262,82.214,10.28312764]
[1772980437721,10.941,82.261,82.22,3.94016247]
[1772980437927,11.03968206,82.26,82.22,3.94016247]
[1772980441331,11.03968206,82.258,82.22,3.94016247]
[1772980442528,11.03968206,82.256,82.214,10.28312764]
[1772980443326,10.2592904,82.252,82.214,10.28312764]
[1772980444821,10.02549375,82.249,82.214,10.28312764]
[1772980445734,14.96518799,82.291,82.182,472.27972781]
[1772980445735,10.02549375,82.247,82.203,10.21666549]
[1772980446635,10.02549375,82.244,82.191,10.21666549]
[1772980447024,10.02549375,82.236,82.191,10.21666549]
[1772980447334,10.02549375,82.236,82.2,3.94016247]
[1772980447536,10.02549375,82.269,82.211,10.21666549]
[1772980447733,10.02549375,82.267,82.211,10.21666549]
[1772980447934,9.7456286,82.266,82.211,10.21666549]
[1772980448133,10.02549375,82.264,82.211,10.21666549]
[1772980448335,9.7456286,82.263,82.211,10.21666549]
[1772980448638,10.02549375,82.261,82.211,10.21666549]
[1772980448834,10.02549375,82.253,82.211,10.21666549]
[1772980450834,10.02549375,82.25,82.211,10.21666549]
[1772980451839,10.943,82.247,82.211,10.21666549]
[1772980452432,20.96849375,82.247,82.211,10.21666549]
[1772980453537,10.02549375,82.247,82.211,10.21666549]
[1772980456251,10.02549375,82.265,82.23,3.94016247]
[1772980456446,10.02549375,82.265,82.23,14.15682796]
[1772980457748,10.941,82.263,82.23,14.15682796]
[1772980457942,10.02549375,82.265,82.23,14.15682796]
[1772980458846,10.02549375,82.265,82.231,10.21666549]
[1772980459449,10.94,82.27,82.231,10.21666549]
[1772980459658,9.79604432,82.269,82.231,10.21666549]
[1772980459952,9.79604432,82.268,82.231,10.21666549]
[1772980460145,10.94,82.266,82.231,10.21666549]
[1772980465058,10.02549375,82.273,82.231,10.21666549]
[1772980465258,9.79927791,82.272,82.231,10.21666549]
[1772980465459,19.82477166,82.271,82.231,10.21666549]
[1772980465656,9.79927791,82.27,82.231,10.21666549]
[1772980465858,9.79927791,82.269,82.231,10.21666549]
[1772980466057,9.79927791,82.268,82.231,10.21666549]
[1772980466259,9.79927791,82.267,82.231,10.21666549]
[1772980466457,10.02549375,82.271,82.231,10.21666549]
[1772980466656,19.82530983,82.27,82.231,10.21666549]
[1772980466858,9.79981608,82.269,82.231,10.21666549]
[1772980467058,9.79981608,82.268,82.231,10.21666549]
[1772980467254,9.79981608,82.267,82.231,10.21666549]
[1772980467557,10.02549375,82.27,82.231,10.21666549]
[1772980467759,19.82552208,82.269,82.231,10.21666549]
[1772980467949,9.80002833,82.268,82.231,10.21666549]
[1772980468149,9.80002833,82.267,82.231,10.21666549]
[1772980468361,10.02549375,82.269,82.231,10.21666549]
[1772980468561,9.80033802,82.268,82.231,10.21666549]
[1772980468756,9.80033802,82.267,82.231,10.21666549]
[1772980469064,10.02549375,82.269,82.231,10.21666549]
[1772980469259,9.80033916,82.268,82.231,10.21666549]
[1772980469459,9.80033916,82.267,82.231,10.21666549]
[1772980469660,10.02549375,82.269,82.231,10.21666549]
[1772980469862,9.80052673,82.268,82.231,10.21666549]
[1772980470161,10.02549375,82.269,82.231,10.21666549]
[1772980470162,9.80052673,82.267,82.231,10.21666549]
[1772980470362,10.02549375,82.269,82.231,10.21666549]
[1772980470567,9.80078024,82.268,82.231,10.21666549]
[1772980470752,9.80078024,82.267,82.231,10.21666549]
[1772980470958,10.02549375,82.269,82.231,10.21666549]
[1772980471153,19.82627399,82.268,82.231,10.21666549]
[1772980471361,19.82627399,82.267,82.231,10.21666549]
[1772980471561,10.02549375,82.267,82.231,10.21666549]
[1772980472267,3.94016247,82.26,82.201,10.21666549]
[1772980472467,10.02549375,82.249,82.201,10.21666549]
[1772980473365,3.94016247,82.25,82.202,10.949]
[1772980473366,10.3674044,82.247,82.202,10.949]
[1772980473563,10.3674044,82.247,82.203,10.127783]
[1772980475067,10.3674044,82.244,82.203,10.127783]
[1772980475669,10.3674044,82.234,82.182,472.27972781]
[1772980475869,10.3674044,82.229,82.182,472.27972781]
[1772980476268,10.3674044,82.209,82.163,10.127783]
[1772980476572,10.3674044,82.209,82.151,10.127783]
[1772980477376,10.3674044,82.198,82.151,10.127783]
[1772980478874,10.3674044,82.195,82.151,10.127783]
[1772980482770,10.3674044,82.195,82.15,3.94241642]
[1772980482972,10.3674044,82.189,82.141,10.127783]
[1772980484877,10.951,82.188,82.141,10.127783]
[1772980485078,10.3674044,82.187,82.141,10.127783]
[1772980485772,10.951,82.186,82.141,10.127783]
[1772980485978,10.3674044,82.185,82.141,10.127783]
[1772980486375,10.3674044,82.196,82.15,3.94241642]
[1772980486570,22.44778199,82.261,82.141,10.127783]
[1772980486571,10.3674044,82.189,82.141,10.127783]
[1772980487778,10.951,82.187,82.142,10.127783]
[1772980488178,3.94241642,82.19,82.132,10.958]
[1772980488179,10.3674044,82.175,82.132,10.958]
[1772980488378,10.3674044,82.175,82.133,10.127783]
[1772980490181,10.3674044,82.175,82.123,10.127783]
[1772980491880,3.94241642,82.17,82.123,10.127783]
[1772980492075,10.3674044,82.169,82.123,10.127783]
[1772980492281,10.3674044,82.169,82.124,21.086783]
[1772980492484,10.3674044,82.169,82.125,10.127783]
[1772980493982,3.94241642,82.18,82.127,10.127783]
[1772980494174,10.3674044,82.181,82.131,10.127783]